[Event "Masters Tournament (MTO)"]
[Site "Biel, Switzerland"]
[Date "2026.07.15"]
[Round "3.37"]
[White "Stevens, Christian"]
[Black "Ruchat, Blaise"]
[Result "1-0"]
[TimeControl "100+30+30sec/move"]
[WhiteTitle "-"]
[BlackTitle "-"]
[WhiteFideId "649090"]
[BlackFideId "1328921"]
[WhiteElo "2014"]
[BlackElo "1912"]

1. Nf3 {[%clk 01:40:53]} {[%emt 00:00:07]} Nf6 {[%clk 01:40:03]} {[%emt
00:00:57]} 2. g3 {[%clk 01:41:15]} {[%emt 00:00:08]} g6 {[%clk 01:37:30]}
{[%emt 00:03:03]} 3. Bg2 {[%clk 01:41:32]} {[%emt 00:00:12]} Bg7 {[%clk
01:37:53]} {[%emt 00:00:08]} 4. c4 {[%clk 01:41:50]} {[%emt 00:00:11]} O-O
{[%clk 01:38:02]} {[%emt 00:00:22]} 5. O-O {[%clk 01:42:10]} {[%emt 00:00:09]}
d5 {[%clk 01:38:02]} {[%emt 00:00:30]} 6. cxd5 {[%clk 01:41:50]} {[%emt
00:00:50]} Nxd5 {[%clk 01:38:26]} {[%emt 00:00:06]} 7. Nc3 {[%clk 01:42:03]}
{[%emt 00:00:17]} e5 {[%clk 01:27:12]} {[%emt 00:11:44]} 8. Qb3 {[%clk
01:38:19]} {[%emt 00:04:14]} Nb6 {[%clk 01:24:33]} {[%emt 00:03:08]} 9. d3
{[%clk 01:36:14]} {[%emt 00:02:36]} h6 {[%clk 01:13:56]} {[%emt 00:11:08]} 10.
a4 {[%clk 01:21:31]} {[%emt 00:15:12]} Be6 {[%clk 01:13:29]} {[%emt 00:00:58]}
11. Qc2 {[%clk 01:20:09]} {[%emt 00:01:51]} Nc6 {[%clk 01:11:49]} {[%emt
00:02:10]} 12. a5 {[%clk 01:17:53]} {[%emt 00:02:47]} Nb4 {[%clk 01:09:17]}
{[%emt 00:03:02]} 13. Qd1 {[%clk 01:14:57]} {[%emt 00:03:26]} N6d5 {[%clk
01:09:31]} {[%emt 00:00:15]} 14. Bd2 {[%clk 01:10:04]} {[%emt 00:05:23]} Na6
{[%clk 01:05:20]} {[%emt 00:04:42]} 15. Nxd5 {[%clk 01:06:18]} {[%emt
00:04:16]} Bxd5 {[%clk 01:05:08]} {[%emt 00:00:42]} 16. b4 {[%clk 00:55:59]}
{[%emt 00:10:48]} c6 {[%clk 01:01:58]} {[%emt 00:03:40]} 17. e4 {[%clk
00:53:25]} {[%emt 00:03:04]} Be6 {[%clk 01:01:44]} {[%emt 00:00:44]} 18. Bc3
{[%clk 00:50:57]} {[%emt 00:02:58]} Bg4 {[%clk 00:57:39]} {[%emt 00:04:35]} 19.
Qc2 {[%clk 00:48:27]} {[%emt 00:02:59]} Bxf3 {[%clk 00:49:23]} {[%emt
00:08:48]} 20. Bxf3 {[%clk 00:48:49]} {[%emt 00:00:07]} Nc7 {[%clk 00:48:49]}
{[%emt 00:01:05]} 21. Be2 {[%clk 00:48:28]} {[%emt 00:00:50]} a6 {[%clk
00:33:59]} {[%emt 00:15:21]} 22. Qb2 {[%clk 00:45:18]} {[%emt 00:03:39]} Re8
{[%clk 00:29:56]} {[%emt 00:04:33]} 23. f4 {[%clk 00:42:42]} {[%emt 00:03:06]}
Nb5 {[%clk 00:27:27]} {[%emt 00:02:59]} 24. f5 {[%clk 00:38:09]} {[%emt
00:05:03]} Nxc3 {[%clk 00:20:34]} {[%emt 00:07:24]} 25. Qxc3 {[%clk 00:38:30]}
{[%emt 00:00:08]} Qd4+ {[%clk 00:20:31]} {[%emt 00:00:34]} 26. Qxd4 {[%clk
00:38:30]} {[%emt 00:00:29]} exd4 {[%clk 00:20:58]} {[%emt 00:00:03]} 27. Bd1
{[%clk 00:37:20]} {[%emt 00:01:40]} g5 {[%clk 00:19:26]} {[%emt 00:02:03]} 28.
Bb3 {[%clk 00:36:13]} {[%emt 00:01:36]} Bf8 {[%clk 00:18:03]} {[%emt 00:01:53]}
29. Rab1 {[%clk 00:36:31]} {[%emt 00:00:12]} Re5 {[%clk 00:17:49]} {[%emt
00:00:44]} 30. Bc4 {[%clk 00:36:37]} {[%emt 00:00:23]} g4 {[%clk 00:08:38]}
{[%emt 00:09:42]} 31. h3 {[%clk 00:34:48]} {[%emt 00:02:19]} gxh3 {[%clk
00:08:24]} {[%emt 00:00:44]} 32. Kh2 {[%clk 00:32:59]} {[%emt 00:02:19]} Be7
{[%clk 00:08:34]} {[%emt 00:00:20]} 33. Kxh3 {[%clk 00:29:22]} {[%emt
00:04:07]} Bg5 {[%clk 00:08:55]} {[%emt 00:00:09]} 34. Rb2 {[%clk 00:28:35]}
{[%emt 00:01:16]} Kg7 {[%clk 00:08:43]} {[%emt 00:00:43]} 35. Rh1 {[%clk
00:27:45]} {[%emt 00:01:19]} Kf6 {[%clk 00:03:04]} {[%emt 00:06:11]} 36. Kg4
{[%clk 00:27:32]} {[%emt 00:00:41]} Rg8 {[%clk 00:02:17]} {[%emt 00:01:18]} 37.
Rbh2 {[%clk 00:26:23]} {[%emt 00:01:39]} Rh8 {[%clk 00:01:14]} {[%emt
00:01:37]} 38. Kf3 {[%clk 00:26:15]} {[%emt 00:00:34]} Be3 {[%clk 00:00:58]}
{[%emt 00:00:46]} 39. Re2 {[%clk 00:25:52]} {[%emt 00:00:53]} Bg5 {[%clk
00:01:15]} {[%emt 00:00:13]} 40. g4 {[%clk 00:22:48]} {[%emt 00:03:34]} Rhe8
{[%clk 00:00:51]} {[%emt 00:00:54]} 41. Reh2 {[%clk 00:22:27]} {[%emt
00:00:51]} Kg7 {[%clk 00:19:20]} {[%emt 00:12:02]} 42. Ke2 {[%clk 00:50:52]}
{[%emt 00:02:04]} Rh8 {[%clk 00:15:04]} {[%emt 00:04:46]} 43. Rh5 {[%clk
00:49:36]} {[%emt 00:01:45]} Rg8 {[%clk 00:12:34]} {[%emt 00:03:01]} 44. Rf1
{[%clk 00:46:34]} {[%emt 00:03:32]} Kf6 {[%clk 00:12:28]} {[%emt 00:00:36]} 45.
Kd1 {[%clk 00:46:41]} {[%emt 00:00:23]} Be3 {[%clk 00:12:34]} {[%emt 00:00:24]}
46. Rh4 {[%clk 00:46:16]} {[%emt 00:00:54]} Ree8 {[%clk 00:11:44]} {[%emt
00:01:21]} 47. Ke2 {[%emt 00:01:18]} Bg5 {[%clk 00:11:50]} 48. Rh3 {[%clk
00:44:27]} {[%emt 00:01:55]} Re7 {[%clk 00:11:46]} {[%emt 00:00:35]} 49. Rfh1
{[%clk 00:44:07]} {[%emt 00:00:49]} Ke5 {[%clk 00:10:52]} {[%emt 00:01:24]} 50.
Kf3 {[%clk 00:43:33]} {[%emt 00:01:03]} Bd2 {[%clk 00:09:46]} {[%emt 00:01:37]}
51. Rxh6 {[%clk 00:40:41]} {[%emt 00:03:22]} Bxh6 {[%clk 00:08:58]} {[%emt
00:01:18]} 52. Rxh6 {[%clk 00:41:03]} {[%emt 00:00:08]} Rc7 {[%clk 00:06:17]}
{[%emt 00:03:11]} 53. Bxf7 {[%clk 00:40:38]} {[%emt 00:00:54]} 1-0

[Event "Masters Tournament (MTO)"]
[Site "Biel, Switzerland"]
[Date "2026.07.15"]
[Round "3.38"]
[White "Berezovskii, Arina"]
[Black "Oestmann, Lukas"]
[Result "1/2-1/2"]
[TimeControl "100+30+30sec/move"]
[WhiteTitle "-"]
[BlackTitle "-"]
[WhiteFideId "34449850"]
[BlackFideId "1326457"]
[WhiteElo "1906"]
[BlackElo "1998"]

1. e4 {[%clk 01:40:59]} c6 {[%clk 01:40:57]} {[%emt 00:00:05]} 2. d4 {[%clk
01:41:21]} {[%emt 00:00:07]} d5 {[%clk 01:41:24]} {[%emt 00:00:02]} 3. exd5
{[%clk 01:41:44]} {[%emt 00:00:06]} cxd5 {[%clk 01:41:50]} {[%emt 00:00:06]} 4.
Bd3 {[%clk 01:42:07]} {[%emt 00:00:05]} Nc6 {[%clk 01:42:17]} {[%emt 00:00:03]}
5. c3 {[%clk 01:42:31]} {[%emt 00:00:06]} Qc7 {[%clk 01:42:42]} {[%emt
00:00:05]} 6. h3 {[%clk 01:42:43]} {[%emt 00:00:19]} Nf6 {[%clk 01:43:06]}
{[%emt 00:00:05]} 7. Nf3 {[%clk 01:42:58]} {[%emt 00:00:15]} g6 {[%clk
01:43:30]} {[%emt 00:00:06]} 8. Qc2 {[%clk 01:43:00]} {[%emt 00:00:29]} Bg7
{[%clk 01:43:03]} {[%emt 00:00:57]} 9. O-O {[%clk 01:43:13]} {[%emt 00:00:17]}
O-O {[%clk 01:43:10]} {[%emt 00:00:22]} 10. Be3 {[%clk 01:42:55]} {[%emt
00:00:49]} Re8 {[%clk 01:40:00]} {[%emt 00:03:40]} 11. Re1 {[%clk 01:40:23]}
{[%emt 00:03:02]} e5 {[%clk 01:35:37]} {[%emt 00:04:52]} 12. dxe5 {[%clk
01:36:52]} {[%emt 00:04:02]} Nxe5 {[%clk 01:32:48]} {[%emt 00:03:19]} 13. Nxe5
{[%clk 01:36:41]} {[%emt 00:00:40]} Rxe5 {[%clk 01:30:46]} {[%emt 00:02:32]} 14.
Nd2 {[%clk 01:35:23]} {[%emt 00:01:48]} Re8 {[%clk 01:28:19]} {[%emt 00:02:57]}
15. Bd4 {[%clk 01:30:27]} {[%emt 00:05:26]} Be6 {[%clk 01:26:36]} {[%emt
00:02:13]} 16. Nf3 {[%clk 01:27:21]} {[%emt 00:03:36]} Nh5 {[%clk 01:20:50]}
{[%emt 00:06:16]} 17. Qd2 {[%clk 01:19:18]} {[%emt 00:08:34]} a6 {[%clk
01:17:10]} {[%emt 00:04:10]} 18. Bc2 {[%clk 01:12:26]} {[%emt 00:07:22]} Rac8
{[%clk 01:05:58]} {[%emt 00:11:41]} 19. Bb3 {[%clk 01:07:45]} {[%emt 00:05:11]}
Rcd8 {[%clk 00:53:25]} {[%emt 00:13:03]} 20. Rad1 {[%clk 01:05:42]} {[%emt
00:02:33]} Nf6 {[%clk 00:48:49]} {[%emt 00:05:06]} 21. Be5 {[%clk 00:58:41]}
{[%emt 00:07:32]} Qd7 {[%clk 00:45:34]} {[%emt 00:03:45]} 22. Qd4 {[%clk
00:45:24]} {[%emt 00:13:46]} Nh5 {[%clk 00:45:55]} {[%emt 00:00:09]} 23. g4
{[%clk 00:36:55]} {[%emt 00:09:00]} f6 {[%clk 00:46:19]} {[%emt 00:00:05]} 24.
Bh2 {[%clk 00:24:58]} {[%emt 00:12:27]} f5 {[%clk 00:45:45]} {[%emt 00:01:05]}
25. Ne5 {[%clk 00:22:50]} {[%emt 00:02:38]} Bxe5 {[%clk 00:41:31]} {[%emt
00:04:43]} 26. Rxe5 {[%clk 00:19:51]} {[%emt 00:03:30]} fxg4 {[%clk 00:39:30]}
{[%emt 00:02:31]} 27. hxg4 {[%clk 00:18:12]} {[%emt 00:02:08]} Nf6 {[%clk
00:34:20]} {[%emt 00:05:40]} 28. f3 {[%clk 00:16:30]} {[%emt 00:02:12]} Bf7
{[%clk 00:26:34]} {[%emt 00:08:16]} 29. Rxe8+ {[%clk 00:15:04]} {[%emt
00:01:56]} Nxe8 {[%clk 00:26:53]} {[%emt 00:00:11]} 30. c4 {[%clk 00:14:39]}
{[%emt 00:00:55]} Nc7 {[%clk 00:25:15]} {[%emt 00:02:07]} 31. Qe5 {[%clk
00:13:37]} {[%emt 00:01:32]} Ne6 {[%clk 00:24:45]} {[%emt 00:01:00]} 32. Rxd5
{[%clk 00:11:34]} {[%emt 00:02:34]} Qe7 {[%clk 00:24:34]} {[%emt 00:00:40]} 33.
Rxd8+ {[%clk 00:09:32]} {[%emt 00:02:33]} Qxd8 {[%clk 00:24:47]} {[%emt
00:00:17]} 34. c5 {[%clk 00:08:13]} {[%emt 00:01:49]} Ng5 {[%clk 00:22:51]}
{[%emt 00:02:26]} 35. Bxf7+ {[%clk 00:07:18]} {[%emt 00:01:25]} Nxf7 {[%clk
00:23:06]} {[%emt 00:00:15]} 36. Qb8 {[%clk 00:06:12]} {[%emt 00:01:37]} Kg7
{[%clk 00:22:10]} {[%emt 00:01:25]} 37. Qxd8 {[%clk 00:03:05]} {[%emt
00:03:36]} Nxd8 {[%clk 00:22:34]} {[%emt 00:00:06]} 38. Kf2 {[%clk 00:03:17]}
{[%emt 00:00:19]} Kf6 {[%clk 00:21:52]} {[%emt 00:01:11]} 39. Ke3 {[%clk
00:03:03]} {[%emt 00:00:45]} Ke6 {[%clk 00:21:22]} {[%emt 00:01:00]} 40. Ke4
{[%clk 00:02:32]} {[%emt 00:01:00]} Nc6 {[%clk 00:20:09]} {[%emt 00:01:44]} 41.
Bg3 {[%clk 00:25:55]} {[%emt 00:07:06]} Ne7 {[%clk 00:42:09]} {[%emt 00:08:30]}
42. Bh4 {[%clk 00:25:12]} {[%emt 00:01:14]} Nd5 {[%clk 00:36:45]} {[%emt
00:05:54]} 43. f4 {[%clk 00:24:06]} {[%emt 00:01:36]} Nb4 {[%clk 00:33:45]}
{[%emt 00:03:30]} 44. a3 {[%clk 00:22:10]} {[%emt 00:02:27]} Nc6 {[%clk
00:34:01]} {[%emt 00:00:14]} 45. f5+ {[%clk 00:22:00]} {[%emt 00:00:39]} gxf5+
{[%clk 00:33:58]} {[%emt 00:00:34]} 46. gxf5+ {[%clk 00:22:24]} {[%emt
00:00:06]} Kf7 {[%clk 00:33:28]} {[%emt 00:00:59]} 47. Kd5 {[%clk 00:20:39]}
{[%emt 00:02:15]} Ne7+ {[%clk 00:33:48]} {[%emt 00:00:10]} 48. Ke4 {[%clk
00:18:34]} {[%emt 00:02:35]} Nc6 {[%clk 00:29:12]} {[%emt 00:05:06]} 49. b4
{[%clk 00:17:39]} {[%emt 00:01:25]} Ke8 {[%clk 00:23:39]} {[%emt 00:06:03]} 50.
Be1 {[%clk 00:15:29]} {[%emt 00:02:40]} h5 {[%clk 00:20:01]} {[%emt 00:04:08]}
51. a4 {[%clk 00:15:02]} {[%emt 00:00:58]} h4 {[%clk 00:17:39]} {[%emt
00:02:51]} 52. b5 {[%clk 00:14:30]} {[%emt 00:01:02]} h3 {[%clk 00:17:55]}
{[%emt 00:00:14]} 53. Bg3 {[%clk 00:14:12]} {[%emt 00:00:48]} axb5 {[%clk
00:18:03]} {[%emt 00:00:22]} 54. axb5 {[%clk 00:14:35]} {[%emt 00:00:07]} Na7
{[%clk 00:18:10]} {[%emt 00:00:23]} 55. b6 {[%clk 00:12:15]} {[%emt 00:02:50]}
Nc6 {[%clk 00:18:24]} {[%emt 00:00:16]} 56. Kd5 {[%clk 00:08:18]} {[%emt
00:04:26]} Kd7 {[%clk 00:18:06]} {[%emt 00:00:49]} 57. Bh2 {[%clk 00:05:35]}
{[%emt 00:03:13]} Nb4+ {[%clk 00:12:54]} {[%emt 00:05:42]} 58. Kc4 {[%clk
00:04:37]} {[%emt 00:01:27]} Nc6 {[%clk 00:13:07]} {[%emt 00:00:18]} 59. Kd5
{[%clk 00:04:04]} {[%emt 00:01:04]} Nb4+ {[%clk 00:13:32]} {[%emt 00:00:05]} 60.
Ke4 {[%clk 00:03:03]} {[%emt 00:01:30]} Ke7 {[%clk 00:13:21]} {[%emt 00:00:38]}
61. Ke5 {[%clk 00:02:36]} {[%emt 00:00:59]} Nc6+ {[%clk 00:13:47]} {[%emt
00:00:05]} 62. Kf4 {[%clk 00:02:18]} {[%emt 00:00:48]} Kf6 {[%clk 00:13:54]}
{[%emt 00:00:24]} 63. Bg3 {[%clk 00:01:59]} {[%emt 00:00:48]} Ne5 {[%clk
00:05:52]} {[%emt 00:08:32]} 64. Ke4 {[%clk 00:01:06]} {[%emt 00:01:22]} Nc6
{[%clk 00:06:11]} {[%emt 00:00:12]} 65. Bh4+ {[%clk 00:00:44]} {[%emt
00:00:52]} Kf7 {[%clk 00:06:33]} {[%emt 00:00:08]} 66. Bg3 {[%clk 00:00:48]}
{[%emt 00:00:25]} Kf6 {[%clk 00:06:50]} {[%emt 00:00:14]} 67. Bh2 {[%clk
00:00:57]} {[%emt 00:00:22]} Ke7 {[%clk 00:06:05]} {[%emt 00:01:15]} 68. Bf4
{[%clk 00:00:35]} {[%emt 00:00:52]} Kf6 {[%clk 00:06:09]} {[%emt 00:00:25]} 69.
Bg3 {[%clk 00:00:44]} {[%emt 00:00:20]} Ke7 {[%clk 00:06:16]} {[%emt 00:00:23]}
70. Kd5 {[%clk 00:00:38]} {[%emt 00:00:37]} Kd7 {[%clk 00:00:00]} {[%emt
00:03:45]} 71. f6 {[%clk 00:02:34]} {[%emt 00:03:34]} Nd8 {[%clk 00:06:32]}
{[%emt 00:00:24]} 72. Bh2 {[%clk 00:02:09]} {[%emt 00:00:55]} Nc6 {[%clk
00:02:44]} {[%emt 00:04:17]} 73. f7 {[%clk 00:01:39]} {[%emt 00:01:01]} Ke7
{[%clk 00:03:07]} {[%emt 00:00:05]} 74. f8=Q+ {[%clk 00:01:43]} {[%emt
00:00:30]} Kxf8 {[%clk 00:03:36]} 75. Kd6 {[%clk 00:01:58]} {[%emt 00:00:15]}
Kf7 {[%clk 00:03:18]} {[%emt 00:00:47]} 76. Kc7 {[%clk 00:02:07]} {[%emt
00:00:21]} Na5 {[%clk 00:03:39]} {[%emt 00:00:10]} 77. Kd6 {[%clk 00:01:30]}
{[%emt 00:01:06]} Kf6 {[%clk 00:03:58]} {[%emt 00:00:10]} 78. Kc7 {[%clk
00:00:40]} {[%emt 00:01:21]} Kf5 {[%clk 00:04:13]} {[%emt 00:00:15]} 79. c6
{[%clk 00:00:33]} {[%emt 00:00:37]} bxc6 {[%clk 00:04:37]} {[%emt 00:00:06]} 80.
Kd6 {[%clk 00:00:36]} {[%emt 00:00:27]} Ke4 {[%clk 00:04:56]} {[%emt 00:00:12]}
81. Kc5 {[%clk 00:00:42]} {[%emt 00:00:23]} Kd3 {[%clk 00:03:07]} {[%emt
00:02:19]} 82. Bg3 {[%clk 00:00:43]} {[%emt 00:00:29]} Ke4 {[%clk 00:03:27]}
{[%emt 00:00:10]} 83. Bh2 {[%clk 00:00:45]} {[%emt 00:00:29]} Kf3 {[%clk
00:03:28]} {[%emt 00:00:29]} 84. Be5 {[%clk 00:00:39]} {[%emt 00:00:35]} Kg2
{[%clk 00:03:11]} {[%emt 00:00:47]} 85. Bf4 {[%clk 00:00:44]} {[%emt 00:00:25]}
h2 {[%clk 00:02:59]} {[%emt 00:00:43]} 86. Bxh2 {[%clk 00:01:09]} {[%emt
00:00:05]} Kxh2 {[%clk 00:03:26]} {[%emt 00:00:02]} 87. b7 {[%clk 00:01:31]}
{[%emt 00:00:08]} Nxb7+ {[%clk 00:03:53]} {[%emt 00:00:03]} 88. Kxc6 {[%clk
00:01:57]} {[%emt 00:00:05]} 1/2-1/2

[Event "Masters Tournament (MTO)"]
[Site "Biel, Switzerland"]
[Date "2026.07.15"]
[Round "3.39"]
[White "Damen, Josephine"]
[Black "Vedant, Nayudu"]
[Result "1/2-1/2"]
[TimeControl "100+30+30sec/move"]
[WhiteTitle "-"]
[BlackTitle "-"]
[WhiteFideId "1074369"]
[BlackFideId "33369780"]
[WhiteElo "1971"]
[BlackElo "1797"]

1. e4 {[%clk 01:40:54]} {[%emt 00:00:05]} c6 {[%clk 01:40:56]} {[%emt
00:00:04]} 2. d4 {[%clk 01:41:20]} {[%emt 00:00:04]} d5 {[%clk 01:41:23]}
{[%emt 00:00:03]} 3. exd5 {[%clk 01:41:46]} {[%emt 00:00:04]} cxd5 {[%clk
01:41:45]} {[%emt 00:00:08]} 4. c4 {[%clk 01:42:12]} {[%emt 00:00:04]} Nf6
{[%clk 01:42:12]} {[%emt 00:00:03]} 5. Nc3 {[%clk 01:42:35]} {[%emt 00:00:06]}
Nc6 {[%clk 01:42:39]} {[%emt 00:00:04]} 6. Nf3 {[%clk 01:42:58]} {[%emt
00:00:07]} a6 {[%clk 01:43:07]} {[%emt 00:00:03]} 7. Be3 {[%clk 01:27:01]}
{[%emt 00:16:25]} g6 {[%clk 01:28:41]} {[%emt 00:14:57]} 8. Be2 {[%clk
01:18:45]} {[%emt 00:08:46]} dxc4 {[%clk 01:14:20]} {[%emt 00:14:52]} 9. Bxc4
{[%clk 01:07:43]} {[%emt 00:11:31]} b5 {[%clk 01:03:26]} {[%emt 00:11:25]} 10.
Be2 {[%clk 01:02:33]} {[%emt 00:05:39]} Bb7 {[%clk 01:02:32]} {[%emt 00:01:24]}
11. O-O {[%clk 01:01:22]} {[%emt 00:01:39]} Bg7 {[%clk 01:02:13]} {[%emt
00:00:51]} 12. Qd2 {[%clk 00:55:18]} {[%emt 00:06:35]} O-O {[%clk 00:52:08]}
{[%emt 00:10:34]} 13. Rfd1 {[%clk 00:50:23]} {[%emt 00:05:25]} Rc8 {[%clk
00:43:07]} {[%emt 00:09:32]} 14. Ng5 {[%clk 00:44:32]} {[%emt 00:06:20]} Qd7
{[%clk 00:32:45]} {[%emt 00:10:53]} 15. Bf3 {[%clk 00:41:35]} {[%emt 00:03:26]}
Nb4 {[%clk 00:29:36]} {[%emt 00:03:39]} 16. Na4 {[%clk 00:30:12]} {[%emt
00:11:53]} bxa4 {[%clk 00:19:41]} {[%emt 00:10:26]} 17. Qxb4 {[%clk 00:30:36]}
{[%emt 00:00:05]} Bxf3 {[%clk 00:19:57]} {[%emt 00:00:15]} 18. Nxf3 {[%clk
00:30:51]} {[%emt 00:00:14]} Nd5 {[%clk 00:16:12]} {[%emt 00:04:15]} 19. Qd2
{[%clk 00:29:55]} {[%emt 00:01:26]} Qb5 {[%clk 00:15:22]} {[%emt 00:01:21]} 20.
Rab1 {[%clk 00:16:54]} {[%emt 00:13:31]} Rc4 {[%clk 00:06:32]} {[%emt
00:09:20]} 21. Bh6 {[%clk 00:13:58]} {[%emt 00:03:25]} Rfc8 {[%clk 00:05:14]}
{[%emt 00:01:49]} 22. Bxg7 {[%clk 00:14:16]} {[%emt 00:00:12]} Kxg7 {[%clk
00:05:43]} 23. Rdc1 {[%clk 00:06:16]} {[%emt 00:08:30]} Nb4 {[%clk 00:05:02]}
{[%emt 00:01:11]} 24. a3 {[%clk 00:05:47]} {[%emt 00:01:00]} Rxc1+ {[%clk
00:04:46]} {[%emt 00:00:46]} 25. Rxc1 {[%clk 00:06:07]} {[%emt 00:00:09]} Rxc1+
{[%clk 00:04:45]} {[%emt 00:00:31]} 26. Qxc1 {[%clk 00:06:32]} {[%emt
00:00:05]} Nd3 {[%clk 00:05:04]} {[%emt 00:00:11]} 27. Qe3 {[%clk 00:05:14]}
{[%emt 00:01:48]} e6 {[%clk 00:04:55]} {[%emt 00:00:40]} 28. Ne5 {[%clk
00:01:17]} {[%emt 00:04:26]} Nxb2 {[%clk 00:00:34]} {[%emt 00:04:51]} 29. Qf4
{[%clk 00:01:01]} {[%emt 00:00:45]} Qb7 {[%clk 00:00:34]} {[%emt 00:00:31]} 30.
Ng4 {[%clk 00:01:16]} {[%emt 00:00:15]} Qe7 {[%clk 00:00:32]} {[%emt 00:00:33]}
31. Qe5+ {[%clk 00:00:39]} {[%emt 00:01:07]} f6 {[%clk 00:00:43]} {[%emt
00:00:18]} 32. Qf4 {[%clk 00:00:32]} {[%emt 00:00:37]} Nc4 {[%clk 00:00:36]}
{[%emt 00:00:37]} 33. Nxf6 {[%clk 00:00:31]} {[%emt 00:00:31]} Qxf6 {[%clk
00:00:31]} {[%emt 00:00:35]} 34. Qc7+ {[%clk 00:00:57]} {[%emt 00:00:04]} Kg8
{[%clk 00:00:34]} {[%emt 00:00:27]} 35. Qxc4 {[%clk 00:01:19]} {[%emt
00:00:09]} Qf5 {[%clk 00:00:32]} {[%emt 00:00:31]} 36. h3 {[%clk 00:00:45]}
{[%emt 00:01:04]} Qb1+ {[%clk 00:00:50]} {[%emt 00:00:12]} 37. Kh2 {[%clk
00:01:02]} {[%emt 00:00:14]} Qb3 {[%clk 00:01:16]} {[%emt 00:00:04]} 38. Qc8+
{[%clk 00:01:05]} {[%emt 00:00:27]} Kg7 {[%clk 00:01:36]} {[%emt 00:00:10]} 39.
Qc7+ {[%clk 00:01:07]} {[%emt 00:00:28]} Kf6 {[%clk 00:00:31]} {[%emt
00:01:34]} 40. Qe5+ {[%clk 00:00:47]} {[%emt 00:00:50]} Kf7 {[%clk 00:00:53]}
{[%emt 00:00:09]} 41. Qc7+ {[%clk 00:26:01]} {[%emt 00:05:15]} Kg8 {[%emt
00:17:09]} 42. Qc8+ {[%emt 00:00:08]} Kg7 43. Qxa6 {[%emt 00:00:01]} 1/2-1/2